[Event "American Cup Blitz 2024"]
[Site "Saint Louis"]
[Date "2024.03.21"]
[Round "6.2"]
[White "Caruana, Fabiano"]
[Black "Aronian, Levon"]
[Result "1-0"]
[ECO "A21"]
[WhiteElo "2804"]
[BlackElo "2722"]
[Annotator "RC"]
[PlyCount "149"]
[EventDate "2024.03.21"]
[EventType "swiss"]
[EventCountry "USA"]
[SourceTitle "playchess.com"]
[Source "ChessBase"]
[SourceQuality "1"]
[TimeControl "180+2"]

1. c4 {[%emt 0:00:01]} e5 {[%emt 0:00:02]} 2. Nc3 {[%emt 0:00:02]} Bb4 {[%emt 0:00:01]} 3. Nd5 {[%emt 0:00:01]} Be7 {[%emt 0:00:02]} 4. Nf3 {[%emt 0:00:07]} c6 {[%emt 0:00:06]} 5. Nc3 {[%emt 0:00:01]} d6 {[%emt 0:00:01]} 6. d4 {[%emt 0:00:02]} Nd7 {[%emt 0:00:02]} 7. e4 {[%emt 0:00:01]} Ngf6 {[%emt 0:00:01]} 8. Be2 {[%emt 0:00:02]} O-O {[%emt 0:00:01]} 9. O-O {[%emt 0:00:02]} a6 {[%emt 0:00:01]} 10. d5 {[%emt 0:00:08]} cxd5 {[%emt 0:00:02]} 11. cxd5 {[%emt 0:00:03]} b5 {[%emt 0:00:00]} 12. a3 {[%emt 0:00:05]} Nb6 {[%emt 0:00:05]} 13. h3 {[%emt 0:00:07]} Bd7 {[%emt 0:00:08]} 14. Be3 {[%emt 0:00:02]} Qb8 {[%emt 0:00:01]} 15. Nd2 {[%emt 0:00:13]} Rc8 {[%emt 0:00:02]} 16. Rc1 {[%emt 0:00:02]} Bd8 {[%emt 0:00:07]} 17. Bd3 {[%emt 0:00:07]} Nc4 {[%emt 0:00:11]} 18. Bxc4 {[%emt 0:00:05]} bxc4 {[%emt 0:00:00]} 19. Rc2 {[%emt 0:00:10]} Ba5 {[%emt 0:00:04]} 20. Qe2 {[%emt 0:00:03]} Bxc3 {[%emt 0:00:36]} 21. bxc3 {[%emt 0:00:07]} Ba4 {[%emt 0:00:02]} 22. Ra2 {[%emt 0:00:06]} Bb3 {[%emt 0:00:03]} 23. Raa1 {[%emt 0:00:05]} Qc7 {[%emt 0:00:32]} 24. Rfc1 {[%emt 0:00:17]} Rab8 {[%emt 0:00:02]} 25. a4 {[%emt 0:00:30]} a5 {[%emt 0:00:08]} 26. f4 {[%emt 0:00:09]} exf4 {[%emt 0:00:25]} 27. Bxf4 {[%emt 0:00:01]} Re8 {[%emt 0:00:01]} 28. Qf3 {[%emt 0:00:05]} Rb7 {[%emt 0:00:09]} 29. Kh2 {[%emt 0:00:12]} Nd7 {[%emt 0:00:15]} 30. Qg3 {[%emt 0:00:02]} Ne5 {[%emt 0:00:02]} 31. Nf3 {[%emt 0:00:05]} Nd3 {[%emt 0:00:21]} 32. Bxd6 {[%emt 0:00:03]} Qb6 {[%emt 0:00:01]} 33. Nd4 {[%emt 0:00:31]} Nxc1 {[%emt 0:00:09]} 34. Rxc1 {[%emt 0:00:01]} Rxe4 {[%emt 0:00:03]} 35. Rf1 {[%emt 0:00:04]} Qd8 {[%emt 0:00:15]} 36. Be5 {[%emt 0:00:24]} f6 {[%emt 0:00:05]} 37. Bxf6 {[%emt 0:00:01]} Qxd5 {[%emt 0:00:02]} 38. Nf5 {[%emt 0:00:02]} Re6 {[%emt 0:00:04]} 39. Nh6+ {[%emt 0:00:04]} Kf8 {[%emt 0:00:04]} 40. Bxg7+ Ke8 41. Rf8+ {[%emt 0:00:05]} Kd7 {[%emt 0:00:00]} 42. Ng4 {[%emt 0:00:03]} Qd6 {[%emt 0:00:04]} 43. Ne5+ {[%emt 0:00:02]} Rxe5 {[%emt 0:00:02]} 44. Qxe5 {[%emt 0:00:02]} Qxe5+ {[%emt 0:00:01]} 45. Bxe5 {[%emt 0:00:01]} Bxa4 {[%emt 0:00:02]} 46. Ra8 {[%emt 0:00:02]} Rb5 {[%emt 0:00:02]} 47. Bd4 {[%emt 0:00:02]} h5 {[%emt 0:00:02]} 48. Kg3 {[%emt 0:00:01]} Bd1 {[%emt 0:00:02]} 49. Kf4 {[%emt 0:00:02]} a4 {[%emt 0:00:01]} 50. g4 {[%emt 0:00:01]} hxg4 {[%emt 0:00:01]} 51. hxg4 {[%emt 0:00:01]} Bc2 {[%emt 0:00:08]} 52. g5 {[%emt 0:00:03]} Rf5+ {[%emt 0:00:01]} 53. Kg4 {[%emt 0:00:00]} Rf1 {[%emt 0:00:00]} 54. Ra6 {[%emt 0:00:05]} Ke7 {[%emt 0:00:04]} 55. g6 {[%emt 0:00:01]} Re1 {[%emt 0:00:03]} 56. g7 {[%emt 0:00:01]} Bh7 {[%emt 0:00:01]} 57. Rxa4 {[%emt 0:00:01]} Kf7 {[%emt 0:00:01]} 58. Ra7+ {[%emt 0:00:02]} Re7 {[%emt 0:00:01]} 59. Ra8 {[%emt 0:00:01]} Re8 {[%emt 0:00:01]} 60. Ra6 {[%emt 0:00:01]} Re6 {[%emt 0:00:01]} 61. Ra4 {[%emt 0:00:01]} Kg6 {[%emt 0:00:06]} 62. Ra8 {[%emt 0:00:02]} Re4+ {[%emt 0:00:03]} 63. Kf3 {[%emt 0:00:01]} Rxd4 {[%emt 0:00:01]} 64. cxd4 {[%emt 0:00:01]} Kxg7 {[%emt 0:00:01]} 65. Rc8 {[%emt 0:00:02]} Bd3 {[%emt 0:00:02]} 66. Kf4 {[%emt 0:00:01]} Kf6 {[%emt 0:00:01]} 67. Rc6+ {[%emt 0:00:01]} Ke7 {[%emt 0:00:01]} 68. Ke5 {[%emt 0:00:01]} Kd7 {[%emt 0:00:02]} 69. d5 {[%emt 0:00:00]} Bf1 {[%emt 0:00:01]} 70. Kd4 {[%emt 0:00:02]} Be2 {[%emt 0:00:01]} 71. Ra6 {[%emt 0:00:04]} Bf1 {[%emt 0:00:05]} 72. Ke5 {[%emt 0:00:03]} Bd3 {[%emt 0:00:03]} 73. Ra7+ {[%emt 0:00:01]} Kc8 {[%emt 0:00:03]} 74. Kd6 {[%emt 0:00:01]} c3 {[%emt 0:00:04]} 75. Rc7+ {[%emt 0:00:01]} 1-0

[Event "American Cup Blitz 2024"]
[Site "Saint Louis"]
[Date "2024.03.21"]
[Round "6.3"]
[White "Sevian, Samuel"]
[Black "Le, Quang Liem"]
[Result "1-0"]
[ECO "B32"]
[WhiteElo "2697"]
[BlackElo "2731"]
[Annotator "TA"]
[PlyCount "75"]
[EventDate "2024.03.21"]
[EventType "swiss"]
[EventCountry "USA"]
[SourceTitle "playchess.com"]
[Source "ChessBase"]
[SourceQuality "1"]
[TimeControl "180+2"]

{[%evp 24,75,-20,-22,-16,-22,-13,-16,-10,-18,-23,-39,-21,-73,12,-91,-86,-58,-13,-24,38,-67,-74,-79,-73,-98,-25,-31,0,-118,0,-64,-75,-97,7,-70,-85,-175,481,491,477,472,458,452,660,539,5197,4810,5197,5035,29971,29972,29988,29986]} 1. e4 {[%emt 0:00:01]} c5 {[%emt 0:00:01]} 2. Nf3 {[%emt 0:00:01]} Nc6 {[%emt 0:00:01]} 3. d4 {[%emt 0:00:02]} cxd4 {[%emt 0:00:01]} 4. Nxd4 {[%emt 0:00:01]} e5 {[%emt 0:00:01]} 5. Nb5 {[%emt 0:00:01]} d6 {[%emt 0:00:01]} 6. N1c3 {[%emt 0:00:01]} a6 {[%emt 0:00:02]} 7. Na3 {[%emt 0:00:01]} Be6 {[%emt 0:00:01]} 8. Nc4 {[%emt 0:00:03]} Rb8 {[%emt 0:00:01] B32: Sicilian: Löwenthal and Kalashnikov Variations.} 9. Nd5 {[%emt 0:00:02]} (9. Ne3 Nf6 10. Bd3 g6 11. O-O Bh6 12. a4 O-O 13. Kh1 Rc8 14. b3 Nb4 15. Bb2 Bxe3 16. fxe3 Ng4 17. Qd2 Nxd3 18. cxd3 Bxb3 {1-0 Sevian,S (2696)-Le,Q (2731) Saint Louis Blitz 2023 (12)}) 9... Bxd5 {[%emt 0:00:03]} 10. exd5 {[%emt 0:00:02]} Nce7 {[%emt 0:00:01]} 11. g4 $5 {[%emt 0:00:01][%mdl 4] Leaves trodden paths.} Nf6 {[%emt 0:00:07]} 12. Ne3 $146 {[%emt 0:00:32]} ({Predecessor:} 12. Bg2 b5 13. Ne3 g6 14. Qf3 Bg7 15. h4 h5 16. Bd2 hxg4 17. Nxg4 Nh5 18. O-O-O {0-1 Garrido Outon,A (2380)-Lobanov,S (2545) EU-ch 23rd Vrnjacka Banja 2023 (4)}) 12... g6 {[%emt 0:00:07]} 13. h4 {[%emt 0:00:01]} h5 {[%emt 0:00:11]} 14. g5 {[%emt 0:00:07]} Nd7 {[%emt 0:00:02]} 15. a4 {[%emt 0:00:05]} Bg7 {[%emt 0:00:07]} 16. a5 {[%emt 0:00:31]} O-O {[%emt 0:00:03]} 17. Bg2 {[%emt 0:00:02]} Qc7 {[%emt 0:00:19]} 18. Ra3 {[%emt 0:00:24]} (18. Qe2 $11) 18... Rbc8 {[%emt 0:00:33]} (18... f6 $17) 19. c4 {[%emt 0:00:15]} (19. Bh3 $11) 19... f5 $1 $17 {[%emt 0:00:06]} 20. gxf6 {[%emt 0:00:00]} Nxf6 {[%emt 0:00:12]} 21. Bh3 {[%emt 0:00:08]} Rce8 {[%emt 0:00:06]} (21... Nd7 $1 $11) 22. Be6+ {[%emt 0:00:07]} ({White should play} 22. b4 $14) 22... Kh7 $15 {[%emt 0:00:01]} 23. Qc2 {[%emt 0:00:28]} Bh6 {[%emt 0:00:10]} 24. Rg1 {[%emt 0:00:02]} Nd7 {[%emt 0:00:24]} ({Black should try} 24... e4 $1 $17 25. Bd2 Nd7 26. Bxd7 (26. Qxe4 $2 Ne5 $19) 26... Qxd7) 25. b4 $11 {[%emt 0:00:06]} Rf4 {[%emt 0:00:03]} 26. Rc3 {[%emt 0:00:21] [#]} (26. c5 $1 $11 {was the only way to keep the balance.} Nf8 27. Nc4 Nxe6 28. dxe6 Rxc4 (28... d5 29. Nd6 $14) 29. Qxc4) 26... Nf8 {[%emt 0:00:10]} (26... Ref8 $1 $17 27. Rf1 Rd4 (27... Rxh4 28. c5 $11)) 27. c5 {[%emt 0:00:04]} (27. Bh3 $11) 27... Nxe6 $15 {[%emt 0:00:06]} (27... Rxb4 $2 28. Ba3 Qxa5 29. cxd6 $18 (29. Bxb4 Qxb4 30. cxd6 Nxe6 $16) (29. Bxb4 Qxb4 30. cxd6 Nxe6 $14)) (27... Rxh4 28. Nf5 Nxf5 29. Bxf5 $18) 28. dxe6 {[%emt 0:00:01]} e4 {[%emt 0:00:09]} (28... Rxh4 $2 29. Nd5 Qc6 30. Nf6+ Kh8 31. cxd6 (31. Bxh6 Rh1 $18) (31. Nxe8 Re4+ 32. Kf1 d5 $18) 31... Qxd6 32. Nxe8 $18 (32. Bxh6 Rd8 $18)) (28... Rd4 $17 {White must now prevent ...Qc6.} 29. cxd6 Qxd6) 29. cxd6 {[%emt 0:00:10]} (29. Qd2 $11 Bg7 (29... Rxh4 $2 {loses.} 30. cxd6 Qd8 31. Rc7 $18) 30. Rc2) 29... Qxd6 $15 {[%emt 0:00:02]} 30. Nc4 {[%emt 0:00:01]} (30. Rc7 $17 {was called for.}) 30... Qxb4 $4 {[%emt 0:00:17][%mdl 8192] [#]} (30... Qxe6 $19 {Hoping for ...e3.} 31. Bxf4 Bxf4) 31. Ba3 $1 $18 {[%emt 0:00:06]} Qb5 {[%emt 0:00:15]} 32. Nd6 {[%emt 0:00:00]} Qxa5 {[%emt 0:00:04]} 33. Nxe8 {[%emt 0:00:02]} Nd5 {[%emt 0:00:01]} (33... Rf8 $142 34. Nd6 (34. Bxe7 Rxe8 35. Bg5 Bg7 $18) 34... Bg7) 34. Bb2 {[%emt 0:00:08]} Nxc3 {[%emt 0:00:16]} 35. Qxc3 {[%emt 0:00:06]} Qxc3+ {[%emt 0:00:02]} 36. Bxc3 {[%emt 0:00:01]} e3 {[%emt 0:00:04]} 37. Nf6+ {[%emt 0:00:02]} Kg7 {[%emt 0:00:01]} 38. Nxh5+ {[%emt 0:00:01]} 1-0

[Event "American Cup Blitz 2024"]
[Site "Saint Louis"]
[Date "2024.03.21"]
[Round "6.4"]
[White "So, Wesley"]
[Black "Harsha Bharathakoti"]
[Result "1-0"]
[ECO "B41"]
[WhiteElo "2757"]
[BlackElo "2567"]
[Annotator "TA"]
[PlyCount "51"]
[EventDate "2024.03.21"]
[EventType "swiss"]
[EventCountry "USA"]
[SourceTitle "playchess.com"]
[Source "ChessBase"]
[SourceQuality "1"]
[TimeControl "180+2"]

{[%evp 13,51,-1,4,-14,-14,-43,-44,-41,81,92,68,72,79,79,92,60,115,114,207,100,241,247,472,494,487,501,512,506,493,471,551,318,329,330,642,672,604,622,1145,900]} 1. e4 {[%emt 0:00:01]} c5 {[%emt 0:00:05]} 2. Nf3 {[%emt 0:00:01]} e6 {[%emt 0:00:02]} 3. d4 {[%emt 0:00:05]} cxd4 {[%emt 0:00:01]} 4. Nxd4 {[%emt 0:00:01]} a6 {[%emt 0:00:02]} 5. c4 {[%emt 0:00:02]} Nf6 {[%emt 0:00:04]} 6. Nc3 {[%emt 0:00:01]} Bb4 {[%emt 0:00:18]} 7. e5 {[%emt 0:00:20]} Ne4 {[%emt 0:00:19]} 8. Qd3 {[%emt 0:00:33] [#]} Qa5 $1 {[%emt 0:00:50][%csl LRc3,LRe5][%cal Re4c3]} 9. a3 {[%emt 0:00:48][%cal Oa3b4]} (9. Nde2 Nxc3) 9... Bxc3+ {[%emt 0:01:23]} 10. bxc3 {[%emt 0:00:00] Black is slightly better.} Qxc3+ {[%emt 0:00:06]} (10... Qxe5 $15 11. f4 Qa5 (11... Nxc3+ $2 {is the wrong capture.} 12. fxe5 Na4 13. Qg3 $18)) 11. Qxc3 $16 Nxc3 {[%emt 0:00:01]} 12. a4 {[%emt 0:00:02]} Ne4 {[%emt 0:00:08] [#]} 13. Ba3 $1 {[%emt 0:00:08] Prevents d6. Threatens to win with f3.} f6 {[%emt 0:00:03]} 14. f4 {[%emt 0:00:22][%cal Bf2f4,Bf4e5][%mdl 32]} fxe5 {[%emt 0:00:01]} ({Black should play} 14... f5 $14) 15. fxe5 {[%emt 0:00:01]} b6 {[%emt 0:00:05]} (15... Nc6 $16 {keeps fighting.} 16. Nxc6 (16. Bd3 Ng5 $16) 16... dxc6) 16. Be2 {[%emt 0:00:10]} (16. Rb1 $18) 16... Ng5 {[%emt 0:00:01]} (16... Bb7 $16) 17. Rb1 $18 {[%emt 0:00:13]} Nf7 $2 {[%emt 0:00:03]} (17... Bb7 18. Rxb6 Be4) 18. Bf3 {[%emt 0:00:02][%cal Be2f3,Bf3c6,Bc6e4][%mdl 32]} ({Not} 18. Rxb6 Nxe5 19. O-O Nbc6 20. Nxc6 Nxc6 $18) 18... Ra7 {[%emt 0:00:03]} 19. Rxb6 {[%emt 0:00:04]} Nc6 {[%emt 0:00:00]} 20. Nxc6 {[%emt 0:00:07]} dxc6 {[%emt 0:00:01] Black is weak on the dark squares} 21. Bxc6+ {[%emt 0:00:01] This pair of bishops is nice.} Kd8 {[%emt 0:00:02]} 22. Bb2 {[%emt 0:00:14]} Kc7 {[%emt 0:00:03]} 23. a5 {[%emt 0:00:01]} Bd7 $2 {[%emt 0:00:01]} (23... Nd8) 24. O-O {[%emt 0:00:03] White is clearly winning.} Nd8 {[%emt 0:00:04]} 25. Be4 {[%emt 0:00:06]} h6 {[%emt 0:00:02]} 26. Ba3 {[%emt 0:00:01] White took control after the opening.   Weighted Error Value: White=0.26 (precise) /Black=0.69.  Mistake:       	White=1     	Black=6      Inaccurate:     	White=3     	---        OK:         	White=5     	Black=6      Best:        	White=2     	---        Strong:       	White=1     	---} 1-0

[Event "American Cup Blitz 2024"]
[Site "Saint Louis"]
[Date "2024.03.21"]
[Round "6.5"]
[White "Dominguez Perez, Leinier"]
[Black "Bok, Benjamin"]
[Result "1-0"]
[ECO "C92"]
[WhiteElo "2749"]
[BlackElo "2620"]
[Annotator "TA"]
[PlyCount "87"]
[EventDate "2024.03.21"]
[EventType "swiss"]
[EventCountry "USA"]
[SourceTitle "playchess.com"]
[Source "ChessBase"]
[SourceQuality "1"]
[TimeControl "180+2"]

{[%evp 30,87,0,0,0,0,14,11,24,42,42,62,97,110,115,82,81,75,71,50,145,8,2,8,0,0,114,120,151,97,134,119,252,240,252,260,242,257,464,464,645,652,621,640,1076,666,653,536,541,0,11,16,707,702,29947,29944,7810,6213,29998,29999]} 1. e4 {[%emt 0:00:01]} e5 {[%emt 0:00:01]} 2. Nf3 {[%emt 0:00:03]} Nc6 {[%emt 0:00:01]} 3. Bb5 {[%emt 0:00:02]} a6 {[%emt 0:00:01]} 4. Ba4 {[%emt 0:00:01]} Nf6 {[%emt 0:00:01]} 5. O-O {[%emt 0:00:02]} Be7 {[%emt 0:00:01]} 6. Re1 {[%emt 0:00:02]} b5 {[%emt 0:00:01]} 7. Bb3 {[%emt 0:00:01]} d6 {[%emt 0:00:01]} 8. c3 {[%emt 0:00:01]} O-O {[%emt 0:00:01]} 9. h3 {[%emt 0:00:01]} Bb7 {[%emt 0:00:01]} 10. d3 {[%emt 0:00:03]} Na5 {[%emt 0:00:03]} 11. Bc2 {[%emt 0:00:01]} c5 {[%emt 0:00:01]} 12. Nbd2 {[%emt 0:00:03]} Re8 {[%emt 0:00:05]} 13. Nf1 {[%emt 0:00:02]} h6 {[%emt 0:00:02]} 14. Ng3 {[%emt 0:00:02]} Bf8 {[%emt 0:00:02]} 15. d4 {[%emt 0:00:01]} cxd4 {[%emt 0:00:05]} 16. cxd4 {[%emt 0:00:01]} exd4 {[%emt 0:00:06]} 17. Nxd4 {[%emt 0:00:02]} Rc8 {[%emt 0:00:09]} 18. b3 {[%emt 0:00:15]} d5 {[%emt 0:00:47] Die Stellung ist ausgeglichen.} 19. e5 {[%emt 0:00:01]} Ne4 {[%emt 0:00:01]} 20. Bf4 {[%emt 0:00:03]} Bb4 {[%emt 0:00:33] [#]} 21. Qg4 {[%emt 0:00:23][%cal Rc2e4]} Bxe1 {[%emt 0:00:21]} 22. Rxe1 {[%emt 0:00:02][%cal Rc2e4]} Qb6 {[%emt 0:00:17]} 23. Ngf5 $40 {[%emt 0:00:12][%mdl 128] Weiss hat starken Angriff.} Qg6 {[%emt 0:00:03]} 24. Qd1 {[%emt 0:00:08] Droht stark Bxe4. Weiß steht aktiver.} Nc6 {[%emt 0:00:28]} ({Besser ist} 24... Rxc2 $1 $14 25. Qxc2 Nc6) 25. f3 {[%emt 0:00:37] Das Brett brennt.} ({Vorzuziehen ist} 25. Nh4 $16 Qh7 26. Ndf5) 25... Nxd4 $11 {[%emt 0:00:06]} 26. Nxd4 {[%emt 0:00:02]} Qb6 $1 {[%emt 0:00:10][%cal Oc8c2] ...Rxc2! ist eine echte Drohung.} 27. Be3 {[%emt 0:00:09]} ({Viel schwächer wäre} 27. fxe4 Rxc2 28. Qxc2 Qxd4+ 29. Kh2 Rc8 $15 (29... dxe4 30. Rd1 $15)) 27... Nc3 {[%emt 0:00:21]} (27... Nc5 $11 {bleibt in der Remisbreite.}) 28. Qd3 $16 {[%emt 0:00:03]} Qg6 {[%emt 0:00:02]} 29. Qd2 {[%emt 0:00:11]} (29. Qxg6 $142 {Droht Matt per Qh7+.} fxg6 30. e6) 29... Qh5 {[%emt 0:00:02]} 30. Bf4 {[%emt 0:00:05]} ({Keinesfalls} 30. Bf5 b4 $16) 30... Nxa2 {[%emt 0:00:03]} (30... b4 $16) 31. Bf5 $18 {[%emt 0:00:05]} Nc3 {[%emt 0:00:01]} 32. Bxc8 {[%emt 0:00:04]} Rxc8 {[%emt 0:00:01] Schwarz hat schwache schwarze Felder} 33. e6 {[%emt 0:00:02]} fxe6 $2 {[%emt 0:00:03]} (33... Ne4 34. fxe4 dxe4) 34. Rxe6 {[%emt 0:00:01][%cal Be1e6,Be6e7,Be7b7][%mdl 32] Und Re7 würde nun gewinnen.} b4 {[%emt 0:00:02]} 35. Re7 {[%emt 0:00:02]} Re8 {[%emt 0:00:05]} 36. Rxb7 {[%emt 0:00:05]} a5 {[%emt 0:00:03]} 37. Kh2 {[%emt 0:00:02]} Qg6 {[%emt 0:00:02]} 38. Qf2 {[%emt 0:00:27]} Qf6 {[%emt 0:00:02]} 39. Qd2 {[%emt 0:00:08]} (39. Bc7 $18) 39... Nb1 {[%emt 0:00:01]} 40. Qc1 {[%emt 0:00:01][%cal Oc1c7] Zielt auf Qc7! ab.} Qxd4 $4 {[%emt 0:00:01][%mdl 8192] [#]} (40... Nc3 $11) 41. Bxh6 $1 {[%emt 0:00:03]} gxh6 {[%emt 0:00:03]} 42. Qxh6 {[%emt 0:00:01]} Qe5+ {[%emt 0:00:03]} 43. f4 {[%emt 0:00:01]} Qh8 {[%emt 0:00:03] Lässt Qh7+ nicht zu} 44. Qg6+ {[%emt 0:00:01] Gewichteter Fehlerwert: Weiß=0.57/Schwarz=0.78.  Verlustzug:     	---       	Schwarz=1     Fehler:       	Weiß=2     	Schwarz=4     Ungenau:       	---       	Schwarz=4     OK:         	Weiß=6     	Schwarz=4     Bester:       	Weiß=5     	Schwarz=2     Stark:        	Weiß=1     	Schwarz=1} 1-0

[Event "American Cup Blitz 2024"]
[Site "Saint Louis"]
[Date "2024.03.21"]
[Round "6.6"]
[White "Naroditsky, Daniel"]
[Black "Robson, Ray"]
[Result "1-0"]
[ECO "C26"]
[WhiteElo "2619"]
[BlackElo "2696"]
[Annotator "TA"]
[PlyCount "89"]
[EventDate "2024.03.21"]
[EventType "swiss"]
[EventCountry "USA"]
[SourceTitle "playchess.com"]
[Source "ChessBase"]
[SourceQuality "1"]
[TimeControl "180+2"]

{[%evp 10,89,-8,-8,-8,-12,2,-35,-19,-28,18,22,19,20,25,20,60,53,67,64,56,56,45,46,64,81,72,64,66,66,65,69,75,65,85,42,89,91,83,51,88,83,89,102,247,233,239,235,236,234,698,695,694,689,915,921,945,916,934,903,1025,779,1257,868,879,875,935,758,993,754,756,573,1145,1085,29997,29998,29998,1546,1073,732,716,709]} 1. e4 {[%emt 0:00:00]} e5 {[%emt 0:00:11]} 2. Nf3 {[%emt 0:00:02]} Nf6 {[%emt 0:00:06]} 3. Nc3 {[%emt 0:00:01]} Nc6 {[%emt 0:00:00]} 4. g3 {[%emt 0:00:01]} Bc5 {[%emt 0:00:07]} 5. Bg2 {[%emt 0:00:02]} d6 {[%emt 0:00:01]} 6. d3 {[%emt 0:00:01]} a5 {[%emt 0:00:03]} 7. O-O {[%emt 0:00:05]} O-O {[%emt 0:00:07]} 8. h3 {[%emt 0:00:02]} a4 {[%emt 0:00:04] Schwarz steht etwas besser.} 9. a3 {[%emt 0:00:01]} Nd4 {[%emt 0:00:08]} (9... Re8 $142) 10. Nxd4 $11 {[%emt 0:00:03]} Bxd4 {[%emt 0:00:03] [#]} 11. Nxa4 $1 {[%emt 0:00:12]} d5 {[%emt 0:00:26] [#]} (11... Rxa4 12. c3) 12. exd5 $1 {[%emt 0:00:57]} Nxd5 {[%emt 0:00:07]} (12... Rxa4 13. c3) 13. c3 {[%emt 0:00:04]} Ba7 {[%emt 0:00:06]} 14. c4 {[%emt 0:00:19]} Ne7 {[%emt 0:00:23]} 15. Nc3 {[%emt 0:00:19][%cal Ba4c3,Bc3e4,Be4c5][%mdl 32]} c6 {[%emt 0:00:08]} 16. Be3 {[%emt 0:00:14]} Bf5 {[%emt 0:00:41]} 17. Bxa7 {[%emt 0:00:02]} Rxa7 {[%emt 0:00:01]} 18. Ne4 {[%emt 0:00:10]} Qd7 {[%emt 0:00:07]} 19. Kh2 {[%emt 0:00:21]} Rd8 {[%emt 0:00:02]} 20. Qe2 {[%emt 0:00:01]} h6 {[%emt 0:00:13]} 21. Rad1 {[%emt 0:00:04]} Raa8 {[%emt 0:00:08]} 22. Nc5 {[%emt 0:00:15]} Qc7 {[%emt 0:00:03]} (22... Qd4 $1 $14 {sieht stärker aus.} 23. Nb3 (23. Nxb7 $2 Rd7 $19) 23... Qb6) 23. f4 {[%emt 0:00:02]} b6 {[%emt 0:00:10]} 24. Ne4 {[%emt 0:00:03]} (24. Qxe5 $2 Qxe5 25. fxe5 bxc5 $19) 24... exf4 {[%emt 0:00:04]} 25. Rxf4 {[%emt 0:00:02]} Be6 {[%emt 0:00:06]} 26. d4 {[%emt 0:00:09][%cal Bd3d4,Bd4d5][%mdl 32]} Rd7 {[%emt 0:00:13] Danach kann Schwarz die Partie nicht mehr halten.} (26... Ng6 $16 {ist wohl besser.} 27. Rf2 Ne7) 27. Nc3 {[%emt 0:00:07] Droht d5 und aus.} Rad8 {[%emt 0:00:02] [#]} 28. d5 $1 {[%emt 0:00:01][%mdl 512]} cxd5 {[%emt 0:00:02]} 29. cxd5 {[%emt 0:00:01]} Ng6 $2 {[%emt 0:00:05]} (29... Bxd5 $2 {geht unter.} 30. Nxd5 Nxd5 31. Rxd5 $18) (29... Nxd5 30. Bxd5 (30. Rxd5 Rxd5 31. Bxd5 Rxd5 $18) 30... Rxd5 (30... Bxd5 $2 31. Nxd5 Qc8 32. Re4 $18) 31. Rxd5 (31. Nxd5 Rxd5 32. Rxd5 Bxd5 $18) 31... Rxd5) 30. Rc4 $18 {[%emt 0:00:08]} ({Schwächer ist} 30. dxe6 Nxf4 31. exf7+ (31. Rxd7 Rxd7 32. exf7+ Rxf7 $11) (31. gxf4 Qxf4+ 32. Kg1 Rxd1+ 33. Nxd1 Qc1 $18) 31... Rxf7 32. Rxd8+ (32. gxf4 Qxf4+ 33. Kh1 Rxd1+ 34. Qxd1 Kh8 $16) 32... Qxd8 33. gxf4 Rxf4 $16) 30... Qe5 {[%emt 0:00:02][%cal Re6d5]} 31. Re4 {[%emt 0:00:09]} Qg5 {[%emt 0:00:01]} 32. dxe6 {[%emt 0:00:01]} Rxd1 {[%emt 0:00:01]} 33. exf7+ {[%emt 0:00:02]} Kxf7 {[%emt 0:00:02]} 34. Nxd1 {[%emt 0:00:01]} Rd2 {[%emt 0:00:02]} 35. Qc4+ {[%emt 0:00:02]} Kf8 {[%emt 0:00:01][%cal Bf7f8,Bf8g8,Bg8h7][%mdl 32]} 36. Qc8+ {[%emt 0:00:00]} Rd8 {[%emt 0:00:01]} 37. Qc2 {[%emt 0:00:04]} Rd2 {[%emt 0:00:01]} 38. Qc3 {[%emt 0:00:03]} Kg8 {[%emt 0:00:06]} 39. Qf3 {[%emt 0:00:03]} Ne5 {[%emt 0:00:02]} 40. Qe3 {[%emt 0:00:04]} Ng4+ {[%emt 0:00:03]} 41. Rxg4 {[%emt 0:00:02]} Qd5 {[%emt 0:00:01]} 42. Qe8+ {[%emt 0:00:01]} Kh7 {[%emt 0:00:01]} 43. Qe4+ {[%emt 0:00:01]} (43. Qg6+ $142 Kh8 44. Qxg7#) 43... Qxe4 {[%emt 0:00:01]} 44. Rxe4 {[%emt 0:00:00]} Rxd1 {[%emt 0:00:01]} 45. Rb4 {[%emt 0:00:00] Gewichteter Fehlerwert: Weiß=0.10 (sehr präzise) /Schwarz=0.35.  Fehler:       	---       	Schwarz=4     Ungenau:       	Weiß=3     	Schwarz=3     OK:         	Weiß=14    	Schwarz=4     Bester:       	Weiß=1     	Schwarz=1     Brilliant:      	Weiß=1     	---} 1-0